[Event "*** Titled Tuesday Blitz"]
[Site "Chess.com"]
[Date "2020.05.26"]
[Round "7"]
[White "Falia-p"]
[Black "thedjoker98"]
[Result "0-1"]
[WhiteElo "2309"]
[BlackElo "2474"]
[TimeControl "180+1"]
[EndTime "11:21:28 PDT"]
[Termination "thedjoker98 won by resignation"]

1. e4 {[%clk 0:02:15]} 1... e5 {[%clk 0:02:58.2]} 2. Nf3 {[%clk 0:02:13.6]} 2...
Nc6 {[%clk 0:02:58.1]} 3. Bb5 {[%clk 0:02:13.2]} 3... g6 {[%clk 0:02:58.1]} 4.
O-O {[%clk 0:02:11.8]} 4... Bg7 {[%clk 0:02:57.9]} 5. d3 {[%clk 0:02:11.9]} 5...
Nge7 {[%clk 0:02:56.9]} 6. c3 {[%clk 0:02:07.7]} 6... O-O {[%clk 0:02:56]} 7. h3
{[%clk 0:02:06.5]} 7... a6 {[%clk 0:02:56]} 8. Ba4 {[%clk 0:02:05.8]} 8... d6
{[%clk 0:02:56.4]} 9. Nbd2 {[%clk 0:02:03.9]} 9... b5 {[%clk 0:02:55.3]} 10. Bb3
{[%clk 0:02:01.8]} 10... Bb7 {[%clk 0:02:56.2]} 11. Re1 {[%clk 0:01:58.8]} 11...
Na5 {[%clk 0:02:56.1]} 12. Bc2 {[%clk 0:01:58.3]} 12... c5 {[%clk 0:02:56.7]}
13. Nf1 {[%clk 0:01:57.2]} 13... Rc8 {[%clk 0:02:56.3]} 14. Ne3 {[%clk 0:01:55]}
14... d5 {[%clk 0:02:47.7]} 15. Qe2 {[%clk 0:01:53.2]} 15... d4 {[%clk
0:02:37.9]} 16. Ng4 {[%clk 0:01:50.1]} 16... Nac6 {[%clk 0:02:31.1]} 17. a4
{[%clk 0:01:48.8]} 17... dxc3 {[%clk 0:02:28.8]} 18. bxc3 {[%clk 0:01:48.2]}
18... b4 {[%clk 0:02:29.1]} 19. c4 {[%clk 0:01:32.2]} 19... Nd4 {[%clk
0:02:24.6]} 20. Nxd4 {[%clk 0:01:30.9]} 20... cxd4 {[%clk 0:02:25.5]} 21. a5
{[%clk 0:01:29.4]} 21... Qd6 {[%clk 0:02:21.3]} 22. Rf1 {[%clk 0:01:21.2]} 22...
f5 {[%clk 0:02:18.6]} 23. Nh2 {[%clk 0:01:03.6]} 23... Rcd8 {[%clk 0:01:50.6]}
24. Bg5 {[%clk 0:00:55.7]} 24... Rd7 {[%clk 0:01:42.9]} 25. Ba4 {[%clk
0:00:52.7]} 25... Rc7 {[%clk 0:01:39.4]} 26. Rac1 {[%clk 0:00:49.1]} 26... Qc5
{[%clk 0:01:31.7]} 27. Ra1 {[%clk 0:00:42.9]} 27... Nc8 {[%clk 0:01:15.1]} 28.
Bb3 {[%clk 0:00:39.4]} 28... Nd6 {[%clk 0:01:14.2]} 29. f3 {[%clk 0:00:37.3]}
29... Bc6 {[%clk 0:00:47.6]} 30. Bd2 {[%clk 0:00:36.7]} 30... Rb8 {[%clk
0:00:40.6]} 31. Qe1 {[%clk 0:00:35.4]} 31... Bf8 {[%clk 0:00:40.6]} 32. g4
{[%clk 0:00:29.9]} 32... f4 {[%clk 0:00:39.2]} 33. Kg2 {[%clk 0:00:27.9]} 33...
Nb7 {[%clk 0:00:39.4]} 34. Qh4 {[%clk 0:00:24.6]} 34... Nxa5 {[%clk 0:00:38]}
35. Rxa5 {[%clk 0:00:22.1]} 35... Qxa5 {[%clk 0:00:37.7]} 36. g5 {[%clk
0:00:23]} 36... Qc5 {[%clk 0:00:34.2]} 37. Ng4 {[%clk 0:00:22.6]} 37... Bg7
{[%clk 0:00:34.4]} 38. Nf6+ {[%clk 0:00:21.5]} 38... Bxf6 {[%clk 0:00:34.6]} 39.
gxf6 {[%clk 0:00:22]} 39... a5 {[%clk 0:00:35.5]} 40. Qg5 {[%clk 0:00:19.4]}
40... a4 {[%clk 0:00:34.6]} 41. Bd1 {[%clk 0:00:19.1]} 41... b3 {[%clk
0:00:34.5]} 42. h4 {[%clk 0:00:19.3]} 42... Be8 {[%clk 0:00:29.5]} 43. h5 {[%clk
0:00:18.8]} 43... a3 {[%clk 0:00:27.5]} 44. hxg6 {[%clk 0:00:17.8]} 44... Bxg6
{[%clk 0:00:28.4]} 45. Rh1 {[%clk 0:00:17.1]} 45... a2 {[%clk 0:00:27.1]} 46.
Rxh7 {[%clk 0:00:16.2]} 46... Rxh7 {[%clk 0:00:28]} 47. f7+ {[%clk 0:00:15.7]}
47... Kxf7 {[%clk 0:00:26.7]} 48. Qxe5 {[%clk 0:00:11.6]} 48... Qxe5 {[%clk
0:00:25.9]} 0-1

[Event "*** Titled Tuesday Blitz"]
[Site "Chess.com"]
[Date "2020.05.26"]
[Round "7"]
[White "Blitzstream"]
[Black "rasmussvane"]
[Result "0-1"]
[WhiteElo "2692"]
[BlackElo "2860"]
[TimeControl "180+1"]
[EndTime "11:21:29 PDT"]
[Termination "rasmussvane won by resignation"]

1. d4 {[%clk 0:03:00.9]} 1... d5 {[%clk 0:03:00.1]} 2. Bf4 {[%clk 0:02:59.7]}
2... Nf6 {[%clk 0:03:00.3]} 3. e3 {[%clk 0:03:00.1]} 3... e6 {[%clk 0:03:01]} 4.
Nf3 {[%clk 0:03:00.2]} 4... Bd6 {[%clk 0:03:01.7]} 5. Bd3 {[%clk 0:03:00.5]}
5... O-O {[%clk 0:03:01.7]} 6. O-O {[%clk 0:03:00.6]} 6... c5 {[%clk 0:02:59.9]}
7. c3 {[%clk 0:02:59.8]} 7... b6 {[%clk 0:02:59.6]} 8. Qe2 {[%clk 0:02:43]} 8...
a5 {[%clk 0:02:51.7]} 9. Na3 {[%clk 0:02:35.1]} 9... Ba6 {[%clk 0:02:40.1]} 10.
Nb5 {[%clk 0:02:32.8]} 10... Bxf4 {[%clk 0:02:39.4]} 11. exf4 {[%clk 0:02:30.4]}
11... c4 {[%clk 0:02:39.7]} 12. Bc2 {[%clk 0:02:06.3]} 12... Bxb5 {[%clk
0:02:39.3]} 13. Ne5 {[%clk 0:02:06.4]} 13... Bc6 {[%clk 0:02:06.9]} 14. g4
{[%clk 0:02:05.6]} 14... Bb7 {[%clk 0:02:04.2]} 15. g5 {[%clk 0:02:05.4]} 15...
Ne4 {[%clk 0:02:03.2]} 16. Qh5 {[%clk 0:01:47.9]} 16... Nd7 {[%clk 0:01:46.1]}
17. f3 {[%clk 0:01:21.3]} 17... g6 {[%clk 0:01:44]} 18. Qh6 {[%clk 0:00:57.4]}
18... Nd6 {[%clk 0:01:30.4]} 19. Ng4 {[%clk 0:00:34.9]} 19... f5 {[%clk
0:00:53]} 20. Nf2 {[%clk 0:00:11.1]} 20... Qe7 {[%clk 0:00:39.9]} 21. Rae1
{[%clk 0:00:10.6]} 21... Rae8 {[%clk 0:00:38.8]} 22. Qh4 {[%clk 0:00:10]} 22...
b5 {[%clk 0:00:37.8]} 23. Qg3 {[%clk 0:00:10.2]} 23... b4 {[%clk 0:00:35.8]} 24.
h4 {[%clk 0:00:05.3]} 24... b3 {[%clk 0:00:20.9]} 25. Bb1 {[%clk 0:00:03.8]}
25... bxa2 {[%clk 0:00:20.4]} 26. Bxa2 {[%clk 0:00:04.7]} 26... Bc6 {[%clk
0:00:20.1]} 27. Bb1 {[%clk 0:00:04.3]} 27... Qf7 {[%clk 0:00:18.3]} 28. Re2
{[%clk 0:00:04.4]} 28... Rb8 {[%clk 0:00:18.2]} 29. Nd1 {[%clk 0:00:04.3]} 29...
Ba4 {[%clk 0:00:17.8]} 30. Ne3 {[%clk 0:00:03.5]} 30... Bc6 {[%clk 0:00:13.1]}
31. Rh2 {[%clk 0:00:03.5]} 31... a4 {[%clk 0:00:13.1]} 32. Bc2 {[%clk
0:00:03.2]} 32... Rxb2 {[%clk 0:00:11.6]} 33. h5 {[%clk 0:00:03.5]} 33... gxh5
{[%clk 0:00:10.2]} 34. Nd1 {[%clk 0:00:01.9]} 34... Ra2 {[%clk 0:00:09.3]} 35.
Rff2 {[%clk 0:00:01.9]} 35... a3 {[%clk 0:00:09.5]} 36. Rh4 {[%clk 0:00:01.8]}
36... Ra8 {[%clk 0:00:08.5]} 37. Rfh2 {[%clk 0:00:01.9]} 37... Rxc2 {[%clk
0:00:08.8]} 38. Rxc2 {[%clk 0:00:01.6]} 38... a2 {[%clk 0:00:09.3]} 39. Rch2
{[%clk 0:00:01.3]} 39... a1=Q {[%clk 0:00:09.6]} 40. Rxh5 {[%clk 0:00:02.1]}
40... Qxd1+ {[%clk 0:00:09.8]} 41. Kg2 {[%clk 0:00:03]} 41... Ra2+ {[%clk
0:00:09.7]} 42. Kh3 {[%clk 0:00:03.9]} 42... Qxh5+ {[%clk 0:00:10]} 0-1

[Event "*** Titled Tuesday Blitz"]
[Site "Chess.com"]
[Date "2020.05.26"]
[Round "7"]
[White "GMaka"]
[Black "Matveev_Vladimir"]
[Result "0-1"]
[WhiteElo "2395"]
[BlackElo "2569"]
[TimeControl "180+1"]
[EndTime "11:21:29 PDT"]
[Termination "Matveev_Vladimir won on time"]

1. d4 {[%clk 0:03:00.9]} 1... Nf6 {[%clk 0:03:00]} 2. Bf4 {[%clk 0:02:59.7]}
2... g6 {[%clk 0:02:59.7]} 3. Nc3 {[%clk 0:02:58.6]} 3... c5 {[%clk 0:02:50.1]}
4. d5 {[%clk 0:02:53.6]} 4... Bg7 {[%clk 0:02:46]} 5. Qd2 {[%clk 0:02:52.4]}
5... O-O {[%clk 0:02:26.5]} 6. h4 {[%clk 0:02:43.9]} 6... b5 {[%clk 0:02:19.9]}
7. h5 {[%clk 0:02:04.5]} 7... b4 {[%clk 0:02:19.3]} 8. Nd1 {[%clk 0:02:04.5]}
8... Bb7 {[%clk 0:02:12.9]} 9. d6 {[%clk 0:01:54.3]} 9... Ne4 {[%clk 0:02:01.3]}
10. Qd3 {[%clk 0:01:54.1]} 10... exd6 {[%clk 0:01:57.1]} 11. Qh3 {[%clk
0:01:34.7]} 11... g5 {[%clk 0:01:53]} 12. h6 {[%clk 0:01:31.1]} 12... Bh8 {[%clk
0:01:22.9]} 13. Nf3 {[%clk 0:01:19.5]} 13... f6 {[%clk 0:01:15.2]} 14. Bc1
{[%clk 0:00:52.4]} 14... Qe7 {[%clk 0:01:14.7]} 15. Ne3 {[%clk 0:00:52.3]} 15...
Qe6 {[%clk 0:00:38.4]} 16. Qf5 {[%clk 0:00:52]} 16... Nc6 {[%clk 0:00:23.5]} 17.
g4 {[%clk 0:00:46.9]} 17... Ne7 {[%clk 0:00:21.1]} 18. Qxe6+ {[%clk 0:00:43.8]}
18... dxe6 {[%clk 0:00:22]} 19. Bg2 {[%clk 0:00:42.8]} 19... d5 {[%clk
0:00:22.1]} 20. O-O {[%clk 0:00:35.3]} 20... Ng6 {[%clk 0:00:22.1]} 21. Rb1
{[%clk 0:00:31.5]} 21... Nf4 {[%clk 0:00:21.8]} 22. Re1 {[%clk 0:00:28.8]} 22...
Ba6 {[%clk 0:00:22.1]} 23. Bf1 {[%clk 0:00:28.4]} 23... d4 {[%clk 0:00:19.9]}
24. Ng2 {[%clk 0:00:26.6]} 24... Nh3+ {[%clk 0:00:20.1]} 25. Kh2 {[%clk
0:00:25.6]} 25... Nhxf2 {[%clk 0:00:21]} 26. Nd2 {[%clk 0:00:19.2]} 26... Nxg4+
{[%clk 0:00:20.4]} 27. Kg1 {[%clk 0:00:19.2]} 27... Ng3 {[%clk 0:00:17.7]} 28.
e4 {[%clk 0:00:12.1]} 28... Bxf1 {[%clk 0:00:15]} 29. Nxf1 {[%clk 0:00:13]}
29... Nxf1 {[%clk 0:00:15.1]} 30. Rxf1 {[%clk 0:00:09.7]} 30... Ne5 {[%clk
0:00:16]} 31. Bd2 {[%clk 0:00:06.3]} 31... Rad8 {[%clk 0:00:15.9]} 32. Rbe1
{[%clk 0:00:05.5]} 32... a5 {[%clk 0:00:15.6]} 33. Re2 {[%clk 0:00:04.9]} 33...
c4 {[%clk 0:00:16]} 34. b3 {[%clk 0:00:04.6]} 34... d3 {[%clk 0:00:15]} 35. cxd3
{[%clk 0:00:05]} 35... c3 {[%clk 0:00:15.6]} 36. Be3 {[%clk 0:00:04.1]} 36...
Rxd3 {[%clk 0:00:16.2]} 37. Bb6 {[%clk 0:00:04.1]} 37... Ra8 {[%clk 0:00:15.7]}
38. Bc7 {[%clk 0:00:03.4]} 38... Ng4 {[%clk 0:00:14.1]} 39. Ne1 {[%clk
0:00:01.2]} 39... Rd7 {[%clk 0:00:13.3]} 0-1

[Event "*** Titled Tuesday Blitz"]
[Site "Chess.com"]
[Date "2020.05.26"]
[Round "7"]
[White "El_ultimo_Pablo"]
[Black "BogdanBelyakov89"]
[Result "0-1"]
[WhiteElo "2426"]
[BlackElo "2638"]
[TimeControl "180+1"]
[EndTime "11:21:30 PDT"]
[Termination "BogdanBelyakov89 won on time"]

1. d4 {[%clk 0:03:00.9]} 1... Nf6 {[%clk 0:02:59.6]} 2. Nf3 {[%clk 0:03:00.9]}
2... g6 {[%clk 0:02:57.1]} 3. c4 {[%clk 0:03:01]} 3... Bg7 {[%clk 0:02:55.7]} 4.
Nc3 {[%clk 0:03:01.3]} 4... O-O {[%clk 0:02:56]} 5. e4 {[%clk 0:03:01.8]} 5...
d6 {[%clk 0:02:56.5]} 6. Be2 {[%clk 0:03:02.4]} 6... e5 {[%clk 0:02:56.5]} 7.
O-O {[%clk 0:03:02.7]} 7... Nc6 {[%clk 0:02:56.3]} 8. d5 {[%clk 0:03:03]} 8...
Ne7 {[%clk 0:02:56.4]} 9. b4 {[%clk 0:03:03.2]} 9... Nh5 {[%clk 0:02:56.1]} 10.
Re1 {[%clk 0:03:02.9]} 10... f5 {[%clk 0:02:51.3]} 11. Ng5 {[%clk 0:03:02.3]}
11... Nf6 {[%clk 0:02:49.7]} 12. Bf3 {[%clk 0:03:02.7]} 12... c6 {[%clk
0:02:47.6]} 13. Bb2 {[%clk 0:03:02.7]} 13... h6 {[%clk 0:02:37]} 14. Ne6 {[%clk
0:03:02.8]} 14... Bxe6 {[%clk 0:02:36.4]} 15. dxe6 {[%clk 0:03:03.7]} 15... fxe4
{[%clk 0:02:34.5]} 16. Nxe4 {[%clk 0:03:03.7]} 16... Nxe4 {[%clk 0:02:34.2]} 17.
Rxe4 {[%clk 0:03:04.6]} 17... d5 {[%clk 0:02:27.2]} 18. cxd5 {[%clk 0:03:05.5]}
18... cxd5 {[%clk 0:02:27]} 19. Rxe5 {[%clk 0:03:05.4]} 19... Bxe5 {[%clk
0:02:27]} 20. Bxe5 {[%clk 0:03:06.3]} 20... Kh7 {[%clk 0:02:26.2]} 21. Bb2
{[%clk 0:03:01]} 21... Qb6 {[%clk 0:02:21.9]} 22. Qd2 {[%clk 0:02:37.8]} 22...
Rac8 {[%clk 0:02:17.4]} 23. Re1 {[%clk 0:02:21.8]} 23... Rc4 {[%clk 0:02:06.6]}
24. a3 {[%clk 0:01:51]} 24... a5 {[%clk 0:01:47.7]} 25. bxa5 {[%clk 0:01:15.2]}
25... Qc5 {[%clk 0:01:47.4]} 26. Bc1 {[%clk 0:00:54.9]} 26... Rcf4 {[%clk
0:01:36.1]} 27. Qd3 {[%clk 0:00:31.5]} 27... R4f5 {[%clk 0:01:21.2]} 28. Bd2
{[%clk 0:00:27]} 28... Nc6 {[%clk 0:01:16.9]} 29. Be3 {[%clk 0:00:14.8]} 29...
d4 {[%clk 0:01:11.2]} 30. Bd2 {[%clk 0:00:14.3]} 30... Ne5 {[%clk 0:01:05.4]}
31. Qe4 {[%clk 0:00:09.7]} 31... Nxf3+ {[%clk 0:00:54.5]} 32. gxf3 {[%clk
0:00:10.6]} 32... Re8 {[%clk 0:00:46.7]} 33. Bb4 {[%clk 0:00:08.9]} 33... Qc6
{[%clk 0:00:45.5]} 34. Qxc6 {[%clk 0:00:07.3]} 34... bxc6 {[%clk 0:00:45.6]} 35.
e7 {[%clk 0:00:04.8]} 35... c5 {[%clk 0:00:45.8]} 36. Bd2 {[%clk 0:00:04.7]}
36... Rf7 {[%clk 0:00:44.6]} 37. a6 {[%clk 0:00:02.4]} 37... Rexe7 {[%clk
0:00:43.7]} 38. Rc1 {[%clk 0:00:03.3]} 38... Ra7 {[%clk 0:00:41.3]} 39. Rxc5
{[%clk 0:00:03.7]} 39... Rxa6 {[%clk 0:00:41.6]} 40. Bb4 {[%clk 0:00:03.9]}
40... Rd7 {[%clk 0:00:40.7]} 41. Rc2 {[%clk 0:00:03.6]} 41... d3 {[%clk
0:00:40.2]} 42. Rd2 {[%clk 0:00:04.1]} 42... Re6 {[%clk 0:00:40.7]} 43. Kf1
{[%clk 0:00:03.6]} 43... g5 {[%clk 0:00:40.4]} 44. Bc3 {[%clk 0:00:01.8]} 44...
Kg6 {[%clk 0:00:40.2]} 45. Bb4 {[%clk 0:00:02]} 45... Kf5 {[%clk 0:00:40.4]} 46.
Bc3 {[%clk 0:00:02.4]} 46... h5 {[%clk 0:00:40.6]} 47. Bb4 {[%clk 0:00:02.8]}
47... h4 {[%clk 0:00:41.1]} 48. Bc3 {[%clk 0:00:03.1]} 48... h3 {[%clk
0:00:41.4]} 49. Bb4 {[%clk 0:00:03.5]} 49... Kf4 {[%clk 0:00:41.7]} 50. Bc3
{[%clk 0:00:03.1]} 50... Kxf3 {[%clk 0:00:41.9]} 51. Bb4 {[%clk 0:00:03.5]}
51... Re2 {[%clk 0:00:41.1]} 0-1

[Event "*** Titled Tuesday Blitz"]
[Site "Chess.com"]
[Date "2020.05.26"]
[Round "7"]
[White "miroslavsavic"]
[Black "ChronicUnhappiness"]
[Result "0-1"]
[WhiteElo "2061"]
[BlackElo "2283"]
[TimeControl "180+1"]
[EndTime "11:21:31 PDT"]
[Termination "ChronicUnhappiness won on time"]

1. Nf3 {[%clk 0:03:00.9]} 1... Nf6 {[%clk 0:02:59.3]} 2. c4 {[%clk 0:02:59.8]}
2... e6 {[%clk 0:02:58.5]} 3. Nc3 {[%clk 0:02:58.3]} 3... d5 {[%clk 0:02:58.3]}
4. d4 {[%clk 0:02:57.8]} 4... Bb4 {[%clk 0:02:57.3]} 5. Bg5 {[%clk 0:02:53.2]}
5... h6 {[%clk 0:02:56.5]} 6. Bxf6 {[%clk 0:02:52.7]} 6... Qxf6 {[%clk
0:02:55.8]} 7. e3 {[%clk 0:02:52.4]} 7... O-O {[%clk 0:02:55.2]} 8. Qb3 {[%clk
0:02:43.7]} 8... c5 {[%clk 0:02:54.1]} 9. a3 {[%clk 0:02:36]} 9... Bxc3+ {[%clk
0:02:43.7]} 10. bxc3 {[%clk 0:02:34.8]} 10... dxc4 {[%clk 0:02:17.3]} 11. Bxc4
{[%clk 0:02:29.6]} 11... Nc6 {[%clk 0:02:17.1]} 12. O-O {[%clk 0:02:19.4]} 12...
Na5 {[%clk 0:02:14.6]} 13. Qa4 {[%clk 0:02:18.7]} 13... Nxc4 {[%clk 0:02:13]}
14. Qxc4 {[%clk 0:02:17.8]} 14... cxd4 {[%clk 0:01:56.9]} 15. cxd4 {[%clk
0:02:15]} 15... b6 {[%clk 0:01:56.5]} 16. Ne5 {[%clk 0:02:12.3]} 16... Bb7
{[%clk 0:01:46]} 17. f3 {[%clk 0:02:04.6]} 17... Rfc8 {[%clk 0:01:43.3]} 18. Qd3
{[%clk 0:01:45.5]} 18... Rc7 {[%clk 0:01:41.2]} 19. Rfc1 {[%clk 0:01:42.2]}
19... Rac8 {[%clk 0:01:40.9]} 20. Qd2 {[%clk 0:01:41.7]} 20... Qe7 {[%clk
0:01:36.6]} 21. h3 {[%clk 0:01:23.1]} 21... f6 {[%clk 0:01:13.2]} 22. Ng6 {[%clk
0:01:12.2]} 22... Rxc1+ {[%clk 0:01:04.3]} 23. Rxc1 {[%clk 0:01:10.1]} 23...
Qxa3 {[%clk 0:01:01.6]} 24. Rxc8+ {[%clk 0:01:09]} 24... Bxc8 {[%clk 0:01:01.3]}
25. Kh1 {[%clk 0:00:48.3]} 25... Bd7 {[%clk 0:00:56.8]} 26. e4 {[%clk
0:00:39.7]} 26... a5 {[%clk 0:00:42.9]} 27. e5 {[%clk 0:00:23.8]} 27... Kh7
{[%clk 0:00:18.2]} 28. Qc2 {[%clk 0:00:18.4]} 28... f5 {[%clk 0:00:17.5]} 29.
Qc7 {[%clk 0:00:11.1]} 29... Qa1+ {[%clk 0:00:14.1]} 30. Kh2 {[%clk 0:00:10.3]}
30... Qxd4 {[%clk 0:00:09.3]} 31. Nf8+ {[%clk 0:00:08.3]} 31... Kg8 {[%clk
0:00:08]} 32. Nxd7 {[%clk 0:00:09.2]} 32... Qd5 {[%clk 0:00:02.7]} 33. Qd8+
{[%clk 0:00:07.8]} 33... Kh7 {[%clk 0:00:02.2]} 34. Nf8+ {[%clk 0:00:06.7]}
34... Kg8 {[%clk 0:00:02.2]} 35. Nd7+ {[%clk 0:00:04.6]} 35... Kf7 {[%clk
0:00:03.1]} 36. Qf8+ {[%clk 0:00:03.1]} 36... Kg6 {[%clk 0:00:03.1]} 37. Qe8+
{[%clk 0:00:02]} 37... Kh7 {[%clk 0:00:03.1]} 38. Nf8+ {[%clk 0:00:01.1]} 38...
Kg8 {[%clk 0:00:03]} 0-1

[Event "*** Titled Tuesday Blitz"]
[Site "Chess.com"]
[Date "2020.05.26"]
[Round "7"]
[White "DACF2905"]
[Black "Gandrade2"]
[Result "1-0"]
[WhiteElo "2266"]
[BlackElo "2015"]
[TimeControl "180+1"]
[EndTime "11:21:31 PDT"]
[Termination "DACF2905 won on time"]

1. c4 {[%clk 0:03:00.9]} 1... Nf6 {[%clk 0:02:59.2]} 2. g3 {[%clk 0:03:01.2]}
2... g6 {[%clk 0:02:59.1]} 3. Bg2 {[%clk 0:03:01.4]} 3... Bg7 {[%clk 0:02:59.7]}
4. Nc3 {[%clk 0:03:01.7]} 4... O-O {[%clk 0:02:59.5]} 5. e3 {[%clk 0:03:02.1]}
5... d6 {[%clk 0:02:58.2]} 6. Nge2 {[%clk 0:03:02.6]} 6... c5 {[%clk 0:02:57.1]}
7. d4 {[%clk 0:03:02.6]} 7... Nc6 {[%clk 0:02:41.5]} 8. O-O {[%clk 0:03:01.1]}
8... Rb8 {[%clk 0:02:25.6]} 9. b3 {[%clk 0:02:55.9]} 9... Re8 {[%clk 0:01:59.9]}
10. d5 {[%clk 0:02:55]} 10... Nb4 {[%clk 0:01:56.5]} 11. a3 {[%clk 0:02:52.1]}
11... Na6 {[%clk 0:01:56.5]} 12. Bb2 {[%clk 0:02:51.6]} 12... e6 {[%clk
0:01:56.2]} 13. e4 {[%clk 0:02:51.1]} 13... exd5 {[%clk 0:01:55.8]} 14. exd5
{[%clk 0:02:50.6]} 14... Nc7 {[%clk 0:01:51.9]} 15. Re1 {[%clk 0:02:49.3]} 15...
a6 {[%clk 0:01:51.2]} 16. a4 {[%clk 0:02:36.7]} 16... Bd7 {[%clk 0:01:50.3]} 17.
Bc1 {[%clk 0:02:19.8]} 17... b5 {[%clk 0:01:49.5]} 18. axb5 {[%clk 0:02:16.7]}
18... axb5 {[%clk 0:01:50.4]} 19. Bf4 {[%clk 0:02:16.8]} 19... Bg4 {[%clk
0:01:40.9]} 20. Ra7 {[%clk 0:01:51.9]} 20... bxc4 {[%clk 0:01:38.6]} 21. bxc4
{[%clk 0:01:51.5]} 21... Nh5 {[%clk 0:01:13.7]} 22. Qd2 {[%clk 0:01:34.9]} 22...
Nxf4 {[%clk 0:01:08.5]} 23. Nxf4 {[%clk 0:01:30.7]} 23... Rb3 {[%clk 0:00:39.1]}
24. Rxe8+ {[%clk 0:01:00.4]} 24... Nxe8 {[%clk 0:00:38.2]} 25. Nb5 {[%clk
0:00:59.8]} 25... Qb8 {[%clk 0:00:28.6]} 26. Re7 {[%clk 0:00:56.9]} 26... Bf6
{[%clk 0:00:22.1]} 27. Re1 {[%clk 0:00:56.6]} 27... Be5 {[%clk 0:00:13]} 28. h3
{[%clk 0:00:55.7]} 28... Bd7 {[%clk 0:00:11.8]} 29. Nd3 {[%clk 0:00:53.2]} 29...
Bg7 {[%clk 0:00:11]} 30. Qc2 {[%clk 0:00:46]} 30... Rxb5 {[%clk 0:00:07.9]} 31.
cxb5 {[%clk 0:00:46.3]} 31... Bxb5 {[%clk 0:00:08.5]} 32. Nb2 {[%clk 0:00:21.2]}
32... Nc7 {[%clk 0:00:08.4]} 33. Nc4 {[%clk 0:00:21.2]} 33... Bxc4 {[%clk
0:00:07.3]} 34. Qxc4 {[%clk 0:00:20.9]} 34... Qb2 {[%clk 0:00:06.4]} 35. Re2
{[%clk 0:00:20.2]} 35... Qa1+ {[%clk 0:00:05.5]} 36. Kh2 {[%clk 0:00:20.4]}
36... Qa8 {[%clk 0:00:03.4]} 37. f4 {[%clk 0:00:19.8]} 37... Ne8 {[%clk
0:00:03.7]} 38. Qb5 {[%clk 0:00:18.7]} 38... Nf6 {[%clk 0:00:02.8]} 39. Qc6
{[%clk 0:00:18.9]} 39... Bf8 {[%clk 0:00:02.1]} 40. Qxa8 {[%clk 0:00:18.6]} 1-0

[Event "*** Titled Tuesday Blitz"]
[Site "Chess.com"]
[Date "2020.05.26"]
[Round "7"]
[White "FairChess_on_YouTube"]
[Black "A-Adly"]
[Result "1-0"]
[WhiteElo "3030"]
[BlackElo "2830"]
[TimeControl "180+1"]
[EndTime "11:21:33 PDT"]
[Termination "FairChess_on_YouTube won by resignation"]

1. e4 {[%clk 0:03:00.9]} 1... c6 {[%clk 0:02:58.5]} 2. Nf3 {[%clk 0:02:58.1]}
2... d5 {[%clk 0:02:58.8]} 3. d3 {[%clk 0:02:58.6]} 3... dxe4 {[%clk 0:02:58.2]}
4. dxe4 {[%clk 0:02:58.9]} 4... Qxd1+ {[%clk 0:02:58.8]} 5. Kxd1 {[%clk
0:02:59.7]} 5... Bg4 {[%clk 0:02:58.9]} 6. Be2 {[%clk 0:02:58.2]} 6... Bxf3
{[%clk 0:02:59.2]} 7. Bxf3 {[%clk 0:02:58]} 7... Nd7 {[%clk 0:02:59.7]} 8. Ke2
{[%clk 0:02:57.3]} 8... e6 {[%clk 0:02:58.5]} 9. Bf4 {[%clk 0:02:52.2]} 9... Ne7
{[%clk 0:02:54.8]} 10. g3 {[%clk 0:02:41]} 10... Ng6 {[%clk 0:02:44.1]} 11. Bd2
{[%clk 0:02:40.8]} 11... h5 {[%clk 0:02:36.5]} 12. Bc3 {[%clk 0:02:29]} 12... h4
{[%clk 0:02:29.2]} 13. Nd2 {[%clk 0:02:28.5]} 13... Nge5 {[%clk 0:02:28.5]} 14.
Bg2 {[%clk 0:02:23]} 14... O-O-O {[%clk 0:02:22]} 15. f4 {[%clk 0:02:18.5]}
15... Ng6 {[%clk 0:02:13.1]} 16. Nf3 {[%clk 0:02:08.1]} 16... Be7 {[%clk
0:01:48.4]} 17. Bh3 {[%clk 0:01:53.3]} 17... hxg3 {[%clk 0:01:17.4]} 18. hxg3
{[%clk 0:01:52.8]} 18... Bf6 {[%clk 0:01:12.6]} 19. e5 {[%clk 0:01:41.6]} 19...
Be7 {[%clk 0:01:12.6]} 20. f5 {[%clk 0:01:37.5]} 20... Ngf8 {[%clk 0:01:06.1]}
21. Nd4 {[%clk 0:01:26.5]} 21... Nc5 {[%clk 0:00:45.7]} 22. Kf3 {[%clk
0:01:14.6]} 22... Kc7 {[%clk 0:00:38]} 23. Bg4 {[%clk 0:01:08.4]} 23... Rxh1
{[%clk 0:00:37]} 24. Rxh1 {[%clk 0:01:09.1]} 24... Na4 {[%clk 0:00:34.9]} 25.
fxe6 {[%clk 0:00:54.7]} 25... Nxc3 {[%clk 0:00:34.8]} 26. bxc3 {[%clk
0:00:53.1]} 26... fxe6 {[%clk 0:00:33]} 27. Ke4 {[%clk 0:00:49.6]} 27... Bc5
{[%clk 0:00:30.1]} 28. Rf1 {[%clk 0:00:44]} 28... a5 {[%clk 0:00:20.6]} 29. Rf7+
{[%clk 0:00:23.9]} 29... Rd7 {[%clk 0:00:19.8]} 30. Rxf8 {[%clk 0:00:18.1]}
30... Rxd4+ {[%clk 0:00:18.4]} 31. cxd4 {[%clk 0:00:18.3]} 31... Bxf8 {[%clk
0:00:19.3]} 32. Bxe6 {[%clk 0:00:18.8]} 32... Kd8 {[%clk 0:00:19.2]} 33. c4
{[%clk 0:00:18]} 33... b5 {[%clk 0:00:16.5]} 34. cxb5 {[%clk 0:00:17.4]} 34...
cxb5 {[%clk 0:00:17.4]} 35. d5 {[%clk 0:00:17.1]} 35... Bc5 {[%clk 0:00:15.7]}
36. d6 {[%clk 0:00:16.6]} 36... Bf2 {[%clk 0:00:16]} 37. g4 {[%clk 0:00:15.9]}
37... b4 {[%clk 0:00:16.4]} 38. Bb3 {[%clk 0:00:15.5]} 38... Bg3 {[%clk
0:00:15.9]} 39. Kd5 {[%clk 0:00:15.4]} 39... Bh4 {[%clk 0:00:13.2]} 40. e6
{[%clk 0:00:15.2]} 40... Ke8 {[%clk 0:00:13.4]} 41. Ba4+ {[%clk 0:00:15.1]}
41... Kd8 {[%clk 0:00:13.3]} 42. Kc4 {[%clk 0:00:13.4]} 42... b3 {[%clk
0:00:11.4]} 43. axb3 {[%clk 0:00:13]} 43... Bg5 {[%clk 0:00:11]} 44. Kb5 {[%clk
0:00:11.3]} 44... Bf4 {[%clk 0:00:09.3]} 45. e7+ {[%clk 0:00:10.9]} 45... Kd7
{[%clk 0:00:08.5]} 46. Kc4+ {[%clk 0:00:11.4]} 1-0